Cogmind - Beta 13 @@@ ROGUE MODE // 2024.04.16 @ 12:51:50 Player: BagelsSniperWolf Result: Destroyed by as-73538 with Assembled F-torch Performance ------------- Evolutions (1) 500 Regions Visited (4) 800 Robots Destroyed (23) 115 Value Destroyed (638) 638 Prototype IDs (1) 20 Alien Tech Used (0) 0 Bonus (0) 0 TOTAL SCORE: 2073 Bonus ------- None Cogmind --------- Core Integrity 0/400 Matter 105/300 Energy 62/150 System Corruption 6% Temperature Hot (244) Movement Walking (330) Ox3 Location -9/Mines Parts ------- > --- POWER (2) -------- Light Ion Engine Light Ion Engine > --- PROPULSION (2) --- Improved Aluminum Leg Carbon-fiber Leg > --- UTILITY (3) ------ Huge Storage Unit Experimental Sensor Array > --- WEAPON (2) ------- Beamcaster Heavy Assault Rifle > --- INVENTORY (25) --- (None) Peak State ------------ > --- POWER ------------ Light Ion Engine Improved Ion Engine > --- PROPULSION ------- Carbon-fiber Leg Compact Wheel > --- UTILITY ---------- Huge Storage Unit Experimental Sensor Array ECM Suite > --- WEAPON ----------- Beamcaster Heavy Assault Rifle > --- INVENTORY -------- Medium Laser Medium Laser [Rating: 25] Favorites ----------- Power Light Ion Engine Engine Light Ion Engine Power Core Light Nuclear Core Propulsion Wheel Leg Carbon-fiber Leg Wheel Wheel Utility ECM Suite Device ECM Suite Storage Huge Storage Unit Weapon Improved Light Cannon Energy Gun Beamcaster Ballistic Gun Assault Rifle Ballistic Cannon Improved Light Cannon Launcher Grenade Launcher Build | -11 -10 -10 -9 -9 ------- Run | Yrd Mat Min Mat Min Slots Evolved 2 | . . . 2 . Power 1 | . . . 1 . Propulsion . | . . . . . Utility 1 | . . . 1 . Weapon . | . . . . . Parts Attached 41 | 5 5 10 13 8 Power 10 | 1 . 1 4 4 Engine 9 | 1 . 1 4 3 Core 1 | . . . . 1 Reactor . | . . . . . Propulsion 13 | 2 3 4 2 2 Treads . | . . . . . Leg 5 | . . 3 . 2 Wheel 8 | 2 3 1 2 . Hover . | . . . . . Flight . | . . . . . Utility 6 | 1 1 1 3 . Device 2 | . 1 1 . . Storage 4 | 1 . . 3 . Processor . | . . . . . Hackware . | . . . . . Protection . | . . . . . Artifact . | . . . . . Weapon 12 | 1 1 4 4 2 Energy Gun 4 | . . 2 1 1 Energy Cannon . | . . . . . Ballistic Gun 4 | 1 . 1 1 1 Ballistic Cannon 2 | . . . 2 . Launcher 2 | . 1 1 . . Special Weapon . | . . . . . Impact Weapon . | . . . . . Slashing Weapon . | . . . . . Piercing Weapon . | . . . . . Special Melee Weapon . | . . . . . Unidentified Prototypes 1 | . . 1 . . Parts Lost 15 | . . 4 4 7 Power 4 | . . 1 1 2 Propulsion 5 | . . 2 1 2 Utility 1 | . . . . 1 Weapon 5 | . . 1 2 2 Highest Loss Streak 7 | . . 3 2 7 To Critical Strikes . | . . . . . Average Slot Usage (%) 94 | . 90 97 94 96 Engine 15 | . 14 13 17 15 Core 1 | . . . . 5 Leg 4 | . . 3 9 2 Wheel 18 | . 24 24 11 18 Device 19 | . 9 23 22 20 Storage 10 | . 14 4 11 11 Energy Gun 8 | . . 21 9 1 Ballistic Gun 6 | . 14 3 9 . Ballistic Cannon 5 | . . . 1 19 Launcher 3 | . 13 2 1 . Naked Turns . | . . . . . Heaviest Build 103 | 12 17 14 103 103 Greatest Support 28 | 26 26 26 26 28 Greatest Overweight (x) 6 | . . . 6 3 Average Overweight (x) 1 | . . . 2 3 Largest Inventory Capacity 25 | 8 8 8 25 25 Average Capacity 15 | 7 8 5 20 25 Most Carried 8 | 5 7 6 6 8 Average Carried 4 | 2 5 4 3 5 Final Capacity 25 | 8 8 5 25 25 Final Carried 6 | 5 6 5 6 . Class Distribution -------------------- 82% | Mutant 17% | Scavenger-Mutant Dominant Class ---------------- Mutant | -10/Materials Mutant | -10/Mines Scavenger-Mutant | -9/Materials Mutant | -9/Mines Resources | -11 -10 -10 -9 -9 ----------- Run | Yrd Mat Min Mat Min Matter Collected 783 | 238 135 143 176 91 Remotely . | . . . . . Salvage Created 790 | . 180 137 383 90 Parts 40 | . 6 3 29 2 Haulers Intercepted . | . . . . . Recyclers Shooed . | . . . . . Parts Field Recycled . | . . . . . Retrieved Matter . | . . . . . Parts Self-Destructed . | . . . . . Prevented . | . . . . . Kills | -11 -10 -10 -9 -9 ------- Run | Yrd Mat Min Mat Min Combat Hostiles Destroyed 27 | . 3 5 10 9 Guns 17 | . 2 5 8 2 Cannons 7 | . . . . 7 AOE 3 | . 1 . 2 . Classes Destroyed 6 | . 2 1 2 1 Worker 2 | . 1 . 1 . Watcher 1 | . . . 1 . Swarmer 6 | . . 3 3 . Grunt 12 | . 3 2 5 2 Sentry 2 | . . . 2 . Assembled 7 | . . . . 7 Best Kill Streak 4 | . 1 3 4 3 Combat Bots Only 4 | . 1 3 4 3 Max Kills in Single Turn 3 | . 1 1 3 1 Gunslinging . | . . . . . Exploded 2 | . 1 . 2 . Melee . | . . . . . Uniques/NPCs Destroyed . | . . . . . Combat | -11 -10 -10 -9 -9 -------- Run | Yrd Mat Min Mat Min Hostile Shots Fired 150 | . 12 32 38 68 Missed 27 | . 3 5 9 10 Damage Taken 1931 | . 97 357 457 1020 Core 493 | . 22 71 87 313 Absorbed by Shields . | . . . . . Regen/Repaired (Parts) 20 | . 20 . . . Core Remaining (%) 81 | 100 . 62 . . Volleys Fired 109 | . 22 25 27 35 Largest 2 | . 1 2 2 2 Hottest 114 | . 30 100 98 114 Shots Fired 168 | . 22 29 48 69 Gun 112 | . 21 29 46 16 Cannon 53 | . . . . 53 Launcher 3 | . 1 . 2 . Special . | . . . . . Kinetic 120 | . 21 21 22 56 Thermal 45 | . . 8 24 13 Explosive 3 | . 1 . 2 . Electromagnetic . | . . . . . Robot Hit Streak 7 | . 5 7 7 4 Robot Miss Streak 5 | . 4 2 4 5 Penetration Max . | . . . . . Secondary Targets 2 | . . 1 1 . Max Gunslinging Chain 1 | . . 1 1 . Shots Hit Robots 87 | . 11 22 25 29 Core Hits 39 | . 7 7 14 11 Critical Kills . | . . . . . Critical Parts Destroyed 1 | . . . 1 . Critical Strikes 5 | . . 1 1 3 Burn 1 | . . 1 . . Destroy 1 | . . . 1 . Blast 3 | . . . . 3 Melee Attacks . | . . . . . Impact . | . . . . . Slashing . | . . . . . Piercing . | . . . . . Sneak Attacks . | . . . . . Combat Hostiles . | . . . . . Follow-up Attacks . | . . . . . Damage Inflicted 1749 | . 180 310 596 663 Guns 1116 | . 147 310 517 142 Cannons 521 | . . . . 521 Explosions 112 | . 33 . 79 . Melee . | . . . . . Ramming . | . . . . . Kinetic 1074 | . 147 235 157 535 Thermal 563 | . . 75 360 128 Explosive 112 | . 33 . 79 . Electromagnetic . | . . . . . Impact . | . . . . . Slashing . | . . . . . Piercing . | . . . . . Highest Corruption 6 | . . . . 6 Average Corruption 5 | . . . . 5 Corruption Purged . | . . . . . Corruption Blocked . | . . . . . Effects 2 | . . . . 2 Energy Discharges 1 | . . . . 1 Data Loss (minor) 1 | . . . . 1 Overload Shots . | . . . . . Overflow Damage 36 | . . . . 36 Projectiles 36 | . . . . 36 Explosions . | . . . . . Melee . | . . . . . Knockbacks 6 | . . . . 6 Impact . | . . . . . Kinetic 6 | . . . . 6 Secondary . | . . . . . Self-Inflicted Damage 49 | . . . 49 . Shots 2 | . . . 2 . Rammed . | . . . . . Targets Rammed . | . . . . . Kicked . | . . . . . Crushed . | . . . . . Highest Temperature 474 | . . 176 312 474 Average Temperature 153 | . . 85 112 194 Received Heat Transfer 543 | . 54 177 129 183 Effects 6 | . . . . 6 Shutdowns 3 | . . . . 3 Energy Bleed 1 | . . . . 1 Short Circuit 1 | . . . . 1 Damage (minor) 1 | . . . . 1 Siege Activations . | . . . . . Robots Corrupted . | . . . . . Combat Hostiles . | . . . . . Parts Fried . | . . . . . Impact Corruptions . | . . . . . Robots Melted . | . . . . . Combat Hostiles . | . . . . . Parts Melted . | . . . . . Heat Transferred 1147 | . . 296 629 222 Parts Sabotaged . | . . . . . Parts Stolen . | . . . . . Parts Stripped . | . . . . . Power Chain Reactions . | . . . . . Alert | -11 -10 -10 -9 -9 ------- Run | Yrd Mat Min Mat Min Peak Influence 345 | . 145 136 345 108 Initial 56 | . . 56 52 56 Average 118 | . 45 84 219 81 Maximum Alert Level 1 | . . . 1 . Low Security (%) 79 | 100 100 100 38 100 Level 1 20 | . . . 61 . Level 2 . | . . . . . Level 3 . | . . . . . Level 4 . | . . . . . Level 5 . | . . . . . High Security . | . . . . . Max Security . | . . . . . Squads Dispatched 3 | . 3 . . . Investigation 1 | . 1 . . . Extermination . | . . . . . Reinforcement 2 | . 2 . . . Assault . | . . . . . Garrison . | . . . . . Intercept . | . . . . . Searches Triggered . | . . . . . Construction Impeded . | . . . . . Haulers Reinforced . | . . . . . Active Scanning Responses . | . . . . . Cargo Convoy Interrupts . | . . . . . Stealth | -11 -10 -10 -9 -9 --------- Run | Yrd Mat Min Mat Min Distress Signals 4 | . 2 . 1 1 Communications Jammed . | . . . . . Distress Signals . | . . . . . Times Spotted 37 | . 6 5 15 11 Peak Tracking Total 5 | . 2 3 5 5 Tactical Retreats 2 | . . . 2 . Traps | -11 -10 -10 -9 -9 ------- Run | Yrd Mat Min Mat Min Traps Triggered . | . . . . . Indirectly . | . . . . . Trap Hack Attempts . | . . . . . Triggered . | . . . . . Disarmed . | . . . . . Reprogrammed . | . . . . . Reused . | . . . . . Traps Extracted . | . . . . . Installed . | . . . . . Triggered . | . . . . . Machines | -11 -10 -10 -9 -9 ---------- Run | Yrd Mat Min Mat Min Machines Disabled 1 | . 1 . . . Max in Single Turn 1 | . 1 . . . Machines Repaired . | . . . . . Machines Dismantled . | . . . . . Machines Sabotaged . | . . . . . Overloaded Fab Kills . | . . . . . Hacking | -11 -10 -10 -9 -9 --------- Run | Yrd Mat Min Mat Min Machines Accessed 2 | . 1 . 1 . Terminals . | . . . . . Fabricators . | . . . . . Repair Stations 1 | . 1 . . . Recycling Units . | . . . . . Scanalyzers 1 | . . . 1 . Garrison Access . | . . . . . Total Hacks 7 | . 4 . 3 . Successful 7 | . 4 . 3 . Failed . | . . . . . Catastrophic . | . . . . . Database Lockouts . | . . . . . Manual . | . . . . . Terminals . | . . . . . Fabricators . | . . . . . Repair Stations 4 | . 4 . . . Recycling Units . | . . . . . Scanalyzers 3 | . . . 3 . Garrison Access . | . . . . . Terminal Hacks . | . . . . . Fabricator Hacks . | . . . . . Repair Station Hacks 4 | . 4 . . . Scan Component 2 | . 2 . . . Repair 2 | . 2 . . . Recycling Unit Hacks . | . . . . . Scanalyzer 3 | . . . 3 . Insert Component 2 | . . . 2 . Analyze 1 | . . . 1 . Garrison Access Hacks . | . . . . . Unauthorized Hacks . | . . . . . Terminals . | . . . . . Fabricators . | . . . . . Repair Stations . | . . . . . Recycling Units . | . . . . . Scanalyzers . | . . . . . Garrison Access . | . . . . . Data Cores Recovered . | . . . . . Used . | . . . . . Hacking Detections 1 | . 1 . . . Full Trace Events 1 | . 1 . . . Feedback Events . | . . . . . Feedback Blocked . | . . . . . Robot Schematics Acquired . | . . . . . Robots Built . | . . . . . Authchips . | . . . . . Time . | . . . . . Total Robot Build Rating . | . . . . . Part Schematics Acquired 1 | . . . 1 . Parts Built . | . . . . . Authchips . | . . . . . Time . | . . . . . Total Part Build Rating . | . . . . . Parts Repaired 2 | . 2 . . . Time 52 | . 52 . . . Parts Recycled . | . . . . . Recycled Matter . | . . . . . Retrieved Matter . | . . . . . Retrieved Components . | . . . . . Parts Scanalyzed 1 | . . . 1 . Part Schematics Acquired 1 | . . . 1 . Parts Damaged . | . . . . . Bothacking | -11 -10 -10 -9 -9 ------------ Run | Yrd Mat Min Mat Min Used RIF Installer . | . . . . . Robots Hacked . | . . . . . Non-combat . | . . . . . Combat . | . . . . . Robot Hacks Applied . | . . . . . Relay Couplers Released . | . . . . . Fabnet Peak Effective % . | . . . . . Robots Rewired . | . . . . . Allies Hacked . | . . . . . Hacks Repelled . | . . . . . Allies | -11 -10 -10 -9 -9 -------- Run | Yrd Mat Min Mat Min Total Allies . | . . . . . Largest Group . | . . . . . Highest-Rated Group . | . . . . . Highest-Rated Ally . | . . . . . Total Orders . | . . . . . Ally Attacks . | . . . . . Total Damage . | . . . . . Kills . | . . . . . Allies Corrupted . | . . . . . Allies Melted . | . . . . . Intel | -11 -10 -10 -9 -9 ------- Run | Yrd Mat Min Mat Min Robot Analysis Total . | . . . . . Derelict Logs Recovered 2 | . . 1 . 1 Drone Launches . | . . . . . Drone Recoveries . | . . . . . Exploration | -11 -10 -10 -9 -9 ------------- Run | Yrd Mat Min Mat Min Turns Passed 1245 | 42 231 264 412 296 Spaces Moved 671 | 31 143 196 191 110 Core 1 | 1 . . . . Treads . | . . . . . Legs 100 | . . 17 81 2 Wheels 570 | 30 143 179 110 108 Hover . | . . . . . Flight . | . . . . . Fastest Speed 50 | 50 80 80 120 135 Average Speed 112 | 88 81 92 144 138 Slowest Speed 330 | 90 90 120 330 330 Overloaded Moves . | . . . . . Propulsion Burnouts . | . . . . . Robots Hopped . | . . . . . Cave-ins Triggered . | . . . . . Exploration Rate (%) 29 | 4 39 41 28 33 Regions Visited 4 Branch Regions 2 Pre-discovered Areas 1 | . . . . 1 Known Exits Taken . | . . . . . Unknown Exits Taken 4 | 1 1 1 1 . Scrap Searched 1 | . . 1 . . Spaces Dug . | . . . . . Terrain Destroyed 31 | . 5 . 19 7 Melee . | . . . . . Projectile 7 | . . . . 7 AOE 24 | . 5 . 19 . Terrain Rammed . | . . . . . Walls Destroyed . | . . . . . Machines Disabled . | . . . . . Actions | -11 -10 -10 -9 -9 --------- Run | Yrd Mat Min Mat Min Total 994 | 45 234 250 278 187 Wait 134 | . 60 13 31 30 Move 667 | 30 142 195 190 110 Hop . | . . . . . Pick Up 32 | 10 5 3 12 2 Fast Attach 1 | . . 1 . . Attach 28 | 5 4 7 6 6 Detach 3 | . . 3 . . Swap 12 | . 1 2 7 2 Drop 8 | . . 1 5 2 Fire 109 | . 22 25 27 35 Melee . | . . . . . Ram . | . . . . . Kick . | . . . . . Crush . | . . . . . Escape Stasis . | . . . . . Rewire . | . . . . . Trap . | . . . . . Miscellaneous . | . . . . . Route ------- -11/Scrapyard -10/Materials -10/Mines -9/Materials -9/Mines History --------- Turn | Location | Event 26 | -11/Scrapyard | Discovered new exit (range 15) 43 | -11/Scrapyard | Entered Materials 190 | -10/Materials | Repaired Wheel 218 | -10/Materials | Repaired Wheel 270 | -10/Materials | Discovered new exit (range 6) 274 | -10/Materials | Entered Mines 316 | -10/Mines | Build established: Mutant 341 | -10/Mines | Lost 3 parts (1p1n1w) 356 | -10/Mines | Found a damaged Exp. Sensor Array with a note attached 358 | -10/Mines | Found Prototype Device 359 | -10/Mines | Identified Exp. Sensor Array 415 | -10/Mines | Learned Materials trap positions 419 | -10/Mines | Found a hidden stash of uninstalled traps 487 | -10/Mines | Discovered new exit (range 10) 538 | -10/Mines | Entered Materials 538 | -9/Materials | Evolved 2 slots: Power x1, Utility x1 539 | -9/Materials | Loaded intel: 24 trap records 921 | -9/Materials | Discovered new exit (range 15) 950 | -9/Materials | Entered Mines 976 | -9/Mines | A weapon hastily lodged in a ceiling crevice suddenly fell to the ground 1004 | -9/Mines | Assembled infested the area 1059 | -9/Mines | Learned location of Zion (-6) 1191 | -9/Mines | Core integrity fell below 50% 1232 | -9/Mines | Core integrity fell below 20% 1246 | -9/Mines | Destroyed by as-73538 with Assembled F-torch Last Messages --------------- Ion Engine destroyed. System corrupted by crushing effect (+3). System corrupted by crushing effect (+2). Knocked back. Wheel broken. Overheating: Short circuit. System corrupted: Energy discharge (-34). Broken Wheel destroyed. Power failure, Lgt. Nuclear Core shutdown. as-71459 knocked back. as-71459 destroyed. Overheating: Exp. Sensor Array damaged (-6). Power failure, Lgt. Nuclear Core shutdown. The unstable cave ceiling collapses. System corrupted: Component data lost. Lgt. Nuclear Core destroyed. Destroyed Asb. Hover Unit. Imp. Light Cannon destroyed. as-98927 destroyed. The unstable cave ceiling collapses. Map ----- +----------------------------------------------------+ | | | | | | | | | | | | | | | | | ???????????????????????????????????????????? | | ???????????????????????????????????????????? | | ???????????????????????????????????????????? | | ???????????????????????????????????????????? | | ???????????????????????????????????????????? | | ???????????????????????????????????????????? | | ???????????????????????????????????????????? | | ???????????????????????????????????????##??? | | ????????????????????????????#####?????# ##?? | | ???????????????????????????## ##???# #?? | | ???????????????????????????# #??? ##? | | ???????????????????????????# ##?# #? | | ????????????????????????????# ## #? | | ?????????????????????????????# #? | | ?????????????????????????????# #? | | ????????????????????????????## #?? | | ????????????????????????##### ##?? | | ???????????????????????##@ ##??? | | ?????????????????????###% ##??? | | ????????????????????## %a ##?? | | ????????# ??????## a #?? | | ??????? % %= # < ### #?? | | ??????? [% %% ##?#### #?? | | ?????????# # a #?????## #?? | | ????????# ### ? % #?????## #?? | | ????????????# a #????#" # #?? | | ????????????# # #????## ### ##?? | | ????????????# # ######## #??###??? | | ????????????###?# ##?# #???????? | | ???????????????? ;;%! ##??# #### #???????? | | ???????????????%% ###???# #?## #???????? | | ??????????????% ? #??????# #?#" ?#???????? | | ?????????????### #???????# #?## #???????? | | ???????????????##?#????????# #??# #???????? | | ???????????????????????????# #??# #???????? | | ???????????????????????????# #??#= #???????? | | ??????????????????###??????# #??#* #???????? | | ?????????????????? #??????# #??#* #???????? | | ??????????????????# #??????# #??# !#???????? | | ??????????????????# #??????# #??# #???????? | | ??????????????????# #??????# #??# #???????? | | ??????????????????# #??????# #??# #???????? | +----------------------------------------------------+ Best States ------------- Heat Dissipation 28 Energy Generation 19 Energy Capacity 415 Matter Stores 300 Matter Capacity 300 Sight Range 16 Robot Scan Range 20 Terrain Scan Density 10 ECM Strength 1 Evasion (%) 55 Item Schematics ----------------- Med. Laser | -9/Materials | Scanalyzed Robot Schematics ------------------ None Fabricated ------------ Nothing Alien Tech Used ----------------- None Achievements -------------- None Challenges ------------ None Game ------ Seed PoweredHackingDetonator Manual? 0 Play Time 00:27:02 Cumulative 7.1 hours Start 2024.04.16 @ 12:08:02 End 2024.04.16 @ 12:51:50 Sessions 1 Manual Loads 0 Difficulty Rogue Special Mode None Game No. 12 Rogue 12 Adventurer 0 Explorer 0 Win Type - Total 0 Types 0/0/0/0/0/0/0/0/0 Lore% 5 Gallery% 10 Achievement% 12 Wizard Run 0 Options --------- Layout 0 ASCII 0 Keyboard 0 Movement Mouse Keybinds 0 Fullscreen 1 Font 18/SmallcapsGlow Map View 76x50 Zoom Use 0% Tactical HUD 0 Map Filters NONE Filters NONE Steam 1 RUN: 6e417fc3-bfc8-4427-8fd2-5b5ef67aa166